Cogmind - Beta 16 @@@ ROGUE MODE // 2025.12.16 @ 20:44:20 Player: AngelSpirit Result: Destroyed by D-53 Grenadier with Mini Grenade Launcher Performance ------------- Evolutions (0) 0 Regions Visited (3) 600 Robots Destroyed (27) 135 Value Destroyed (523) 523 Prototype IDs (1) 20 Alien Tech Used (0) 0 Bonus (161) 161 TOTAL SCORE: 1439 Bonus ------- Follower Combat Kills 161 Cogmind --------- Core Integrity 0/250 Matter 290/300 Energy 89/125 System Corruption 0% Temperature Cool (75) Movement Rolling (115) Ox1 Location -8/Recycling Parts ------- > --- POWER (1) -------- Light Ion Engine > --- PROPULSION (2) --- Compact Wheel Compact Wheel > --- UTILITY (2) ------ High-capacity Storage Unit Hardened Medium Armor Plating > --- WEAPON (2) ------- Subdweller Laser Rocket Launcher > --- INVENTORY (20) --- Deuterium Engine Compact Wheel Compact Wheel Subdweller Monowheel Subdweller Monowheel Subdweller Monowheel Subdweller Optics Sensor Array Makeshift Light Armor Plating Scrap Shield V3-11A's Pendant Subdweller Laser Slug Cannon Peak State ------------ > --- POWER ------------ Subdweller Power Source > --- PROPULSION ------- Subdweller Monowheel Subdweller Monowheel > --- UTILITY ---------- Large Storage Unit Makeshift Light Armor Plating > --- WEAPON ----------- Subdweller Laser Slug Cannon > --- INVENTORY -------- Light Ion Engine Subdweller Power Source Large Matter Pod Subdweller Optics Sensor Array Signal Interpreter Subdweller Laser [Rating: 18] Favorites ----------- Power Light Ion Engine Engine Light Ion Engine Propulsion Subdweller Monowheel Treads Armored Treads Wheel Subdweller Monowheel Utility Sensor Array Device Sensor Array Storage Large Storage Unit Protection Hardened Medium Armor Plating Weapon Subdweller Laser Energy Gun Subdweller Laser Energy Cannon Beam Cannon Ballistic Gun Assault Rifle Ballistic Cannon Light Cannon Special Weapon Mining Laser Build | -11 -10 -10 -8 ------- Run | Yrd Mat Sub Rec Slots Evolved . | . . . . Power . | . . . . Propulsion . | . . . . Utility . | . . . . Weapon . | . . . . Parts Attached 42 | 6 9 20 7 Power 6 | 1 2 3 . Engine 6 | 1 2 3 . Core . | . . . . Reactor . | . . . . Propulsion 13 | 2 . 7 4 Treads 1 | . . . 1 Leg . | . . . . Wheel 12 | 2 . 7 3 Hover . | . . . . Flight . | . . . . Utility 9 | 1 3 3 2 Device 3 | . 1 2 . Storage 4 | 1 2 . 1 Processor . | . . . . Hackware . | . . . . Protection 2 | . . 1 1 Artifact . | . . . . Weapon 14 | 2 4 7 1 Energy Gun 5 | 1 . 4 . Energy Cannon 3 | . 2 1 . Ballistic Gun 1 | 1 . . . Ballistic Cannon 3 | . 1 2 . Launcher 1 | . . . 1 Special Weapon 1 | . 1 . . Impact Weapon . | . . . . Slashing Weapon . | . . . . Piercing Weapon . | . . . . Special Melee Weapon . | . . . . Unidentified Prototypes 1 | . . 1 . Parts Lost 8 | . . 8 . Power 1 | . . 1 . Propulsion 4 | . . 4 . Utility . | . . . . Weapon 3 | . . 3 . Highest Loss Streak 3 | . . 3 . To Critical Strikes . | . . . . Average Backups 7 | . 5 7 10 Power 1 | . . 1 . Propulsion 1 | . 1 1 2 Utility 3 | . 1 3 4 Weapon 1 | . 1 . 1 Tool/Special . | . . . . Unused Backups 9 | . . 4 5 Power 3 | . . 2 1 Propulsion 2 | . . . 2 Utility 4 | . . 2 2 Weapon . | . . . . Tool/Special . | . . . . Average Slot Usage (%) 96 | . 98 95 99 Engine 13 | . 14 13 14 Wheel 25 | . 28 24 25 Device 10 | . 12 13 . Storage 13 | . 14 13 14 Protection 3 | . . . 13 Energy Gun 16 | . 5 15 28 Energy Cannon 5 | . 7 6 . Ballistic Cannon 5 | . 10 5 . Peak Build Rating 18 | 6 7 18 16 Average Rating 11 | 4 6 11 14 On Entrance 6 | . 6 7 12 Avg Prop Armor Cover (%) 4 | . . 5 3 Naked Turns . | . . . . Heaviest Build 59 | 12 32 37 59 Greatest Support 36 | 26 26 36 32 Greatest Overweight (x) 9 | . 1 9 3 Average Overweight (x) . | . . . 1 Largest Inventory Capacity 20 | 8 15 15 20 Average Capacity 14 | 7 9 14 19 Most Carried 14 | . 8 10 14 Average Carried 8 | . 5 7 11 Final Capacity 20 | 8 15 15 20 Final Carried 14 | . 7 7 14 Class Distribution -------------------- 78% | Mutant 16% | Commander-Mutant 5% | Scavenger-Mutant Dominant Class ---------------- Mutant | -10/Materials Mutant | -10/Subcaves Commander-Mutant | -8/Recycling Resources | -11 -10 -10 -8 ----------- Run | Yrd Mat Sub Rec Matter Collected 1147 | 225 344 508 70 Remotely . | . . . . Salvage Created 1059 | . 215 467 377 Parts 60 | . 24 24 12 Haulers Intercepted 1 | . 1 . . Recyclers Shooed 1 | . . . 1 Parts Field Recycled . | . . . . Retrieved Matter . | . . . . Parts Self-Destructed 11 | . . 11 . Prevented . | . . . . Parts Restored . | . . . . Kills | -11 -10 -10 -8 ------- Run | Yrd Mat Sub Rec Combat Hostiles Destroyed 15 | . 6 9 . Guns 5 | . 3 2 . Cannons 9 | . 3 6 . Classes Destroyed 6 | . 4 1 1 Worker 3 | . 3 . . Hauler 1 | . 1 . . Recycler 5 | . . . 5 Watcher 3 | . 3 . . Swarmer 6 | . 6 . . Subdweller 9 | . . 9 . Best Kill Streak 4 | . 4 2 2 Combat Bots Only 3 | . 3 2 . Max Kills in Single Turn 1 | . 1 1 1 Gunslinging . | . . . . Exploded . | . . . . Melee . | . . . . Uniques/NPCs Destroyed . | . . . . Combat | -11 -10 -10 -8 -------- Run | Yrd Mat Sub Rec Hostile Shots Fired 93 | . 41 51 1 Missed 21 | . 8 13 . Hits 72 | . 33 38 1 Projectile 72 | . 33 38 1 AOE 1 | . . . 1 Damage Taken 1178 | . 265 859 54 Core 256 | . 61 177 18 Absorbed by Shields . | . . . . Core Remaining (%) 100 | 100 . . . Volleys Fired 117 | . 30 75 12 Largest 2 | . 2 2 2 Hottest 120 | . 100 120 120 Shots Fired 194 | . 59 111 24 Gun 99 | . 26 49 24 Cannon 94 | . 32 62 . Launcher . | . . . . Special 1 | . 1 . . Kinetic 65 | . 29 36 . Thermal 129 | . 30 75 24 Explosive . | . . . . Electromagnetic . | . . . . Robot Hit Streak 14 | . 4 14 5 Robot Miss Streak 5 | . 5 2 3 Penetration Max . | . . . . Secondary Targets . | . . . . Shots Hit Robots 110 | . 25 73 12 Core Hits 40 | . 12 22 6 Critical Kills 2 | . . 2 . Critical Parts Destroyed 1 | . . . 1 Critical Strikes 4 | . . 3 1 Meltdown 1 | . . 1 . Destroy 3 | . . 2 1 Melee Attacks . | . . . . Impact . | . . . . Slashing . | . . . . Piercing . | . . . . Sneak Attacks . | . . . . Combat Hostiles . | . . . . Follow-up Attacks . | . . . . Damage Inflicted 2134 | . 364 1408 362 Guns 1139 | . 190 587 362 Cannons 995 | . 174 821 . Explosions . | . . . . Melee . | . . . . Ramming . | . . . . Kinetic 665 | . 175 490 . Thermal 1469 | . 189 918 362 Explosive . | . . . . Electromagnetic . | . . . . Impact . | . . . . Slashing . | . . . . Piercing . | . . . . Highest Corruption . | . . . . Average Corruption . | . . . . Corruption Purged . | . . . . Corruption Blocked . | . . . . Overload Shots . | . . . . Overflow Damage 14 | . 14 . . Projectiles 14 | . 14 . . Explosions . | . . . . Melee . | . . . . Knockbacks 12 | . 4 8 . Impact . | . . . . Kinetic 10 | . 3 7 . Secondary 2 | . 1 1 . Self-Inflicted Damage . | . . . . Shots . | . . . . Rammed . | . . . . Targets Rammed . | . . . . Kicked . | . . . . Crushed . | . . . . Highest Temperature 302 | . 210 75 302 Average Temperature 68 | . 50 28 105 Received Heat Transfer 159 | . . 159 . Siege Activations . | . . . . Martial Activations . | . . . . Shielding Activations . | . . . . Robots Disrupted . | . . . . Combat Hostiles . | . . . . Robots Corrupted . | . . . . Combat Hostiles . | . . . . Parts Fried . | . . . . Impact Corruptions 1 | . 1 . . Robots Melted 1 | . . 1 . Combat Hostiles 1 | . . 1 . Parts Melted 3 | . . 3 . Heat Transferred 2506 | . 518 1550 438 Parts Sabotaged . | . . . . Parts Stolen . | . . . . Parts Stripped . | . . . . Power Chain Reactions . | . . . . Alert | -11 -10 -10 -8 ------- Run | Yrd Mat Sub Rec Maximum Alert Level . | . . . . Low Security (%) 100 | 100 100 . 100 Level 1 . | . . . . Level 2 . | . . . . Level 3 . | . . . . Level 4 . | . . . . Level 5 . | . . . . High Security . | . . . . Max Security . | . . . . Peak Influence 93 | . 83 . 93 Initial 69 | . . . 69 Average 35 | . 36 . 36 Influence Increases 787 | . 279 232 276 Destroy 0b10 Robot/C 300 | . 120 140 40 Destroy 0b10 Robot/NC 65 | . 35 . 30 Destroy Leader 38 | . 28 10 . Allied During Kill 58 | . . 37 21 Successful Hack 54 | . 36 . 18 Select Force Hacks 150 | . . . 150 Disable Machine 30 | . 15 . 15 Destroy Structure 2 | . . . 2 Lose Combat Pursuer 90 | . 45 45 . Influence Decreases 787 | . 236 131 420 Entered New Map 97 | . . 22 75 Time Decay 616 | . 236 98 282 Lost Part 11 | . . 11 . Lost Ally 63 | . . . 63 Squads Dispatched . | . . . . Investigation . | . . . . Extermination . | . . . . Reinforcement . | . . . . Assault . | . . . . Garrison . | . . . . Intercept . | . . . . Searches Triggered . | . . . . Construction Impeded . | . . . . Haulers Reinforced . | . . . . Active Scanning Responses . | . . . . Cargo Convoy Interrupts . | . . . . Stealth | -11 -10 -10 -8 --------- Run | Yrd Mat Sub Rec Distress Signals . | . . . . Communications Jammed . | . . . . Distress Signals . | . . . . Times Spotted 38 | . 14 18 6 Peak Tracking Total 6 | . 3 3 6 Tactical Retreats 4 | . 2 2 . Traps | -11 -10 -10 -8 ------- Run | Yrd Mat Sub Rec Traps Triggered . | . . . . Indirectly . | . . . . Trap Hack Attempts . | . . . . Triggered . | . . . . Disarmed . | . . . . Reprogrammed . | . . . . Reused . | . . . . Traps Extracted . | . . . . Installed . | . . . . Triggered . | . . . . Machines | -11 -10 -10 -8 ---------- Run | Yrd Mat Sub Rec Machines Disabled 6 | . 1 4 1 Max in Single Turn 1 | . 1 . 1 Machines Repaired . | . . . . Machines Dismantled . | . . . . Machines Sabotaged . | . . . . Overloaded Fab Kills . | . . . . Hacking | -11 -10 -10 -8 --------- Run | Yrd Mat Sub Rec Machines Accessed 17 | . 6 2 9 Terminals 8 | . 5 . 3 Fabricators . | . . . . Repair Stations . | . . . . Recycling Units 7 | . 1 . 6 Scanalyzers . | . . . . Garrison Access . | . . . . Total Hacks 64 | . 27 6 31 Successful 27 | . 9 6 12 Failed 36 | . 17 . 19 Catastrophic 3 | . . . 3 Database Lockouts 1 | . 1 . . Manual 38 | . 24 . 14 Terminals 38 | . 25 . 13 Fabricators . | . . . . Repair Stations . | . . . . Recycling Units 20 | . 2 . 18 Scanalyzers . | . . . . Garrison Access . | . . . . Terminal Hacks 13 | . 4 6 3 Record 5 | . . 5 . Robot Schematic 1 | . . . 1 Robot Analysis 4 | . 2 . 2 Open Door 1 | . . 1 . Locate Traps 2 | . 2 . . Fabricator Hacks . | . . . . Repair Station Hacks . | . . . . Recycling Unit Hacks 3 | . . . 3 Retrieve Components 3 | . . . 3 Scanalyzer . | . . . . Garrison Access Hacks . | . . . . Unauthorized Hacks 11 | . 5 . 6 Terminals 6 | . 5 . 1 Botnet 5 | . 4 . 1 Operators 1 | . 1 . . Fabricators . | . . . . Repair Stations . | . . . . Recycling Units 5 | . . . 5 Tunnel 5 | . . . 5 Scanalyzers . | . . . . Garrison Access . | . . . . Data Cores Recovered . | . . . . Used . | . . . . Hacking Detections 13 | . 6 . 7 Full Trace Events 5 | . 1 . 4 Feedback Events . | . . . . Feedback Blocked . | . . . . Robot Schematics Acquired 1 | . . . 1 Robots Built . | . . . . Authchips . | . . . . Time . | . . . . Total Robot Build Rating . | . . . . Part Schematics Acquired . | . . . . Parts Built . | . . . . Authchips . | . . . . Time . | . . . . Total Part Build Rating . | . . . . Part Studies Acquired . | . . . . Parts Repaired . | . . . . Time . | . . . . Parts Recycled . | . . . . Recycled Matter . | . . . . Retrieved Matter . | . . . . Retrieved Components 15 | . . . 15 Parts Scanalyzed . | . . . . Part Schematics Acquired . | . . . . Parts Damaged . | . . . . Bothacking | -11 -10 -10 -8 ------------ Run | Yrd Mat Sub Rec Used RIF Installer . | . . . . Robots Hacked . | . . . . Non-combat . | . . . . Combat . | . . . . Robot Hacks Applied . | . . . . Relay Couplers Released . | . . . . Fabnet Peak Effective % . | . . . . Robots Rewired 6 | . . . 6 Allies Hacked . | . . . . Hacks Repelled . | . . . . Allies | -11 -10 -10 -8 -------- Run | Yrd Mat Sub Rec Total Allies 11 | . . 5 6 Largest Group 9 | . . 5 9 Highest-Rated Group 148 | . . 95 148 Highest-Rated Ally 27 | . . 19 27 Total Orders . | . . . . Ally Attacks 34 | . . 23 11 Total Damage 856 | . . 671 185 Kills 13 | . . 10 3 Allies Corrupted . | . . . . Allies Melted . | . . . . Intel | -11 -10 -10 -8 ------- Run | Yrd Mat Sub Rec Active Infowar (turns) 2209 | . 642 1534 33 Sensors 2209 | . 642 1534 33 Robot Analysis Total 4 | . 2 . 2 Derelict Logs Recovered 2 | . . 2 . Drone Launches . | . . . . Drone Recoveries . | . . . . Exploration | -11 -10 -10 -8 ------------- Run | Yrd Mat Sub Rec Turns Passed 3581 | 41 681 2038 821 Spaces Moved 2519 | 37 597 1417 468 Core 5 | 2 . 3 . Treads 8 | . . . 8 Legs . | . . . . Wheels 2506 | 35 597 1414 460 Hover . | . . . . Flight . | . . . . Fastest Speed 50 | 50 90 95 115 Average Speed 111 | 88 90 114 129 Slowest Speed 500 | 100 105 500 330 Overloaded Moves . | . . . . Propulsion Burnouts . | . . . . Robots Hopped . | . . . . Potential Cave-ins . | . . . . Cave-ins Triggered . | . . . . Exploration Rate (%) 55 | 4 89 69 61 Regions Visited 3 Branch Regions 2 Pre-discovered Areas 6 | . . 1 5 Known Exits Taken 1 | . . 1 . Unknown Exits Taken 2 | 1 1 . . Scrap Searched 4 | . . 4 . Spaces Dug 2 | . . 2 . Terrain Destroyed 4 | . . 4 . Melee . | . . . . Projectile 4 | . . 4 . AOE . | . . . . Terrain Rammed . | . . . . Walls Destroyed . | . . . . Machines Disabled . | . . . . Actions | -11 -10 -10 -8 --------- Run | Yrd Mat Sub Rec Total 3090 | 42 673 1716 659 Wait 253 | . 23 166 64 Move 2516 | 36 596 1416 468 Hop . | . . . . Pick Up 24 | . 7 11 6 Fast Attach 23 | 6 3 10 4 Attach 10 | . . 8 2 Detach 5 | . . 2 3 Swap 23 | . 7 14 2 Drop 25 | . 7 14 4 Fire 117 | . 30 75 12 Melee . | . . . . Ram . | . . . . Kick . | . . . . Crush . | . . . . Escape Stasis . | . . . . Rewire 94 | . . . 94 Trap . | . . . . Miscellaneous . | . . . . Route ------- -11/Scrapyard -10/Materials (discovered 6 exits: [*Mat x3] / [*Min x2] / *Sub) -10/Subcaves (discovered 3 exits: *Mat x2 / *Rec) -8/Recycling (discovered 1 exit: [*Fac]) History --------- Turn | Location | Event 9 | -11/Scrapyard | Discovered new exit (range 16) 42 | -11/Scrapyard | Entered Materials 118 | -10/Materials | Discovered new exit (range 7) 312 | -10/Materials | Build established: Mutant 318 | -10/Materials | Discovered new exit (range 16) 436 | -10/Materials | Central database locked down 439 | -10/Materials | Discovered new exit (range 15) 454 | -10/Materials | Discovered new exit (range 10) 712 | -10/Materials | Discovered new exit (range 16) 719 | -10/Materials | Discovered new exit (range 5) 723 | -10/Materials | Entered Subcaves 734 | -10/Subcaves | Ambushed by Subdwellers from Twisted Machinery 766 | -10/Subcaves | Core integrity fell below 50% 792 | -10/Subcaves | Lost 3 parts (1p1n1w) 830 | -10/Subcaves | A swath of the cavern ceiling suddenly collapsed 922 | -10/Subcaves | Learned Materials stockpile data 1281 | -10/Subcaves | Visited Clippyterm 1284 | -10/Subcaves | Identified exit to Materials 1284 | -10/Subcaves | Identified exit to Recycling 1284 | -10/Subcaves | Learned location of Section 7 (-2) 1425 | -10/Subcaves | Shifting Twisted Machinery released Battle Cannon 1779 | -10/Subcaves | Shifting Twisted Machinery released Sub. Laser 1779 | -10/Subcaves | Shifting Twisted Machinery released Battle Cannon 1855 | -10/Subcaves | Disturbed a concealed Subdweller 1917 | -10/Subcaves | Visited triangular shrine 1925 | -10/Subcaves | Found Prototype Device 1925 | -10/Subcaves | Identified V3-11A's Pendant 1930 | -10/Subcaves | Befriended Subdweller 2056 | -10/Subcaves | Learned 4 Materials zone layouts 2058 | -10/Subcaves | Core integrity fell below 20% 2060 | -10/Subcaves | Befriended Subdweller 2060 | -10/Subcaves | Befriended Subdweller 2105 | -10/Subcaves | Befriended Subdweller 2105 | -10/Subcaves | Befriended Subdweller 2761 | -10/Subcaves | Entered Recycling 2761 | -8/Recycling | Accompanied by 3 allies 3196 | -8/Recycling | Discovered new exit (range 16) 3313 | -8/Recycling | Build established: Commander-Mutant 3582 | -8/Recycling | Destroyed by D-53 Grenadier with Mini Grenade Launcher Last Messages --------------- [Achievement: Network Effect] >>Force(Tunnel) DISCOVERED[-3/Armory] 03549_ Connecting with Recycling Unit... 03573_ K-01 Serf destroyed. 03573_ T-07 Excavator destroyed. 03576_ Pest 3a destroyed. 03576_ Savior 3a destroyed. 03576_ Integration Channel disabled. 03577_ Defender 3a destroyed. 03577_ Rogue 3a destroyed. 03577_ 1U-6K8(R) destroyed. 03577_ Trooper 3a destroyed. 03577_ G-47 Trooper destroyed. 03579_ R-06 Scavenger collects Imp. Aluminum Leg. 03579_ 30-K58(R) destroyed. 03579_ R-06 Scavenger destroyed. 03581_ R-06 Scavenger collects Sub. Power Source. Map ----- +----------------------------------------------------+ | | | | | ?????????????????????????????????????????????????? | | ?????????????????????????????????????????????????? | | ?????????????????????????????????????????????????? | | ?????????????????????????????????????????????????? | | ?????????????????????????????????????????????????? | | ?????????????????????????????????????????????????? | | ?????????????????????????????????????????????????? | | ?????????????????????????????????????????????????? | | ?????????????????????????????????????????????????? | | ?????????????????????????????????????????????????? | | ?????????????????????????????????????????????????? | | ?????????????????????????????????????????????????? | | ?????????????????????????????????????????????????? | | ?????????????????????????????????????????????????? | | ?????????????????????????????????????????????????? | | ?????????????????????????????????????????????????? | | ???????????????###############???????????????????? | | ???????????????+ #???????????????????? | | ???????????????# #???????????????????? | | ???????????????# """#???????????????????? | | ???????????????# Y"#???????????????????? | | ???????????????# """#???????????????????? | | ???????????????# ##??#####???????????? | | ???????????????# @ +?""" """??????????? | | ?????????#####?# #?""" """ ?????????? | | ?????????#"""#?# """"" """ """ #????????? | | #????#####"Y"### """"""" =! #????????? | | #????# =!!! """ "" [ %* #????????? | | #????# **[*! t! #????????? | | ###### ! #????????? | | ############ % #????????? | | #?????????? % ########????????? | | """ #??????????%ild& #???????????????? | | % """ #??????????=d= #???????????????? | | """ #????????* %%! ##???????????????? | | #?????? =* r ???????????????? | | ###??# p%%# ######??????????????? | | + = # #???????????????????? | | ###+##+############ ! # #???????????????????? | | #?????# / # #???????????????????? | | """ """ """ #?????# ?# ????????????????????? | | """ """ """ #?????########?# ????????????????????? | | """ """ """ #??????????????? ????????????????????? | | #??????????????? ????????????????????? | | #############??????????????? ????????????????????? | | ???????????????????????????? ????????????????????? | | ???????????????????????????? ????????????????????? | | ?????????????????????????????????????????????????? | +----------------------------------------------------+ Best States ------------- Heat Dissipation 25 Coolant Potential 50 Energy Generation 15 Energy Capacity 250 Matter Stores 300 Matter Capacity 300 Sight Range 16 Robot Scan Range 14 Terrain Scan Density 10 Armor Coverage 225 Evasion (%) 42 Recoil Reduction 1 Item Schematics ----------------- None Robot Schematics ------------------ W-25 Informer | -8/Recycling | Hacked Fabricated ------------ Nothing Repaired ---------- Nothing Studied --------- None Alien Tech Used ----------------- None Achievements -------------- Network Effect Challenges ------------ None Game ------ Seed RagnarokZeronetTurretformer Manual? 0 Play Time 00:28:22 Cumulative 300.5 hours Start 2025.12.16 @ 20:10:03 End 2025.12.16 @ 20:44:20 Sessions 1 Manual Loads 0 Difficulty Rogue Special Mode None Game No. 109 Rogue 109 Adventurer 0 Explorer 0 Win Type - Total 2 Types 1/0/0/0/0/0/0/0/0/1 Lore% 73 Gallery% 68 Achievement% 58 Wizard Run 0 Options --------- Layout 1 ASCII 0 Keyboard 0 Movement Mouse Keybinds 0 Fullscreen 2 Font 32/SmallcapsGlow Map View 50x35 Zoom Use 0% Tactical HUD 1 Map Filters NONE Filters NONE Steam 1 RUN: 8646bd29-bcf5-4934-8d51-99caaad9bea5